fUSD/lending_fUSD_20240425
["ID","MTS","AMOUNT","RATE_DAILY","PERIOD"]
[323463735,1714017041021,-504.33700984,0.00011994,2]
[323463736,1714017041032,-510.43722251,0.00011994,2]
[323463737,1714017041042,-503.2863645,0.00011994,2]
[323463738,1714017041054,-511.72612368,0.00011994,2]
[323463739,1714017041066,-504.11264015,0.00011994,2]
[323463740,1714017041077,-503.98622152,0.00011994,2]
[323463741,1714017041088,-501.92250104,0.00011994,2]
[323463742,1714017041098,-501.5352524,0.00011994,2]
[323463743,1714017041109,-508.86330966,0.00011994,2]
[323463744,1714017041119,-500.0,0.00011994,2]
[323463745,1714017041130,-512.11980711,0.00011994,2]
[323463746,1714017041141,-523.08146979,0.00011994,2]
[323463747,1714017041156,-500.0,0.00011994,2]
[323463748,1714017041166,-502.51933248,0.00011994,2]
[323463749,1714017041177,-503.19883993,0.00011994,2]
[323463750,1714017041188,-500.0,0.00011994,2]
[323463751,1714017041198,-505.8579632,0.00011994,2]
[323463752,1714017041209,-536.31044691,0.00011994,2]
[323463753,1714017041225,-500.67476665,0.00011994,2]
[323463754,1714017041238,-503.90145448,0.00011994,2]
[323463755,1714017041249,-500.0,0.00011994,2]
[323463756,1714017041261,-583.41740542,0.00011994,2]
[323463757,1714017041271,-502.89714506,0.00011994,2]
[323463758,1714017041282,-510.91929854,0.00011994,2]
[323463759,1714017041293,-503.50694534,0.00011994,2]
[323463760,1714017041306,-500.0,0.00011994,2]
[323463761,1714017041317,-510.19393077,0.00011994,2]
[323463762,1714017041327,-500.0,0.00011994,2]
[323463763,1714017041337,-507.745799,0.00011994,2]
[323463764,1714017041348,-500.0,0.00011994,2]
[323463765,1714017041361,-505.46162247,0.00011994,2]
[323463766,1714017041372,-506.69587534,0.00011994,2]
[323463767,1714017041383,-590.40798791,0.00011994,2]
[323463768,1714017041394,-509.15245186,0.00011994,2]
[323463769,1714017041405,-500.0,0.00011994,2]
[323463770,1714017041415,-514.24131047,0.00011994,2]
[323463771,1714017041426,-506.7847386,0.00011994,2]
[323463772,1714017041436,-506.97339549,0.00011994,2]
[323463773,1714017041447,-500.0,0.00011994,2]
[323463774,1714017041457,-958.56,0.00011994,2]
[323463775,1714017041468,-523.48375123,0.00011994,2]
[323463776,1714017041479,-505.8133648,0.00011994,2]
[323463777,1714017041489,-1216.81,0.00011994,2]
[323463778,1714017041500,-503.33907692,0.00011994,2]
[323463779,1714017041510,-508.5878257,0.00011994,2]
[323463780,1714017041520,-500.0,0.00011994,2]
[323463781,1714017041531,-503.12311886,0.00011994,2]
[323463782,1714017041541,-500.0,0.00011994,2]
[323463783,1714017041553,-510.10418401,0.00011994,2]
[323463784,1714017041563,-500.0,0.00011994,2]
[323463785,1714017041574,-511.22177629,0.00011994,2]
[323463786,1714017041585,-20.45839297,0.00011994,2]
[323463787,1714017041751,-495.79677895,0.00011994,2]
[323463788,1714017041761,-252.26793533,0.00011994,2]
[323463789,1714017041775,-251.85204077,0.00011994,2]
[323463790,1714017041785,-506.34536329,0.00011994,2]
[323463791,1714017041796,-521.11821583,0.00011994,2]
[323463792,1714017041808,-500.0,0.00011994,2]
[323463793,1714017041818,-226.51849358,0.00011994,2]
[323463794,1714017041830,-368.89374162,0.00011994,2]
[323463795,1714017041841,-500.0,0.00011994,2]
[323463796,1714017041850,-500.0,0.00011994,2]
[323463797,1714017041861,-4467.43,0.00011994,2]
[323463798,1714017041870,-505.32487823,0.00011994,2]
[323463799,1714017041881,-551.6234993,0.00011994,2]
[323463800,1714017041890,-512.50473815,0.00011994,2]
[323463801,1714017041898,-500.0,0.00011994,2]
[323463802,1714017041907,-638.86200258,0.00011994,2]
[323463803,1714017041914,-500.0,0.00011994,2]
[323463804,1714017041923,-508.19973931,0.00011994,2]
[323463805,1714017041932,-506.30723591,0.00011994,2]
[323463806,1714017041940,-600.76218206,0.00011994,2]
[323463807,1714017041947,-500.0,0.00011994,2]
[323463808,1714017041955,-505.41024575,0.00011994,2]
[323463809,1714017041962,-507.52765929,0.00011994,2]
[323463810,1714017041969,-484.19614376,0.00011994,2]
[323463811,1714017041979,-500.0,0.00011994,2]
[323463812,1714017041988,-501.41066136,0.00011994,2]
[323463813,1714017041998,-500.0,0.00011994,2]
[323463814,1714017042008,-500.0,0.00011994,2]
[323463815,1714017042017,-506.07068508,0.00011994,2]
[323463816,1714017042026,-502.15064257,0.00011994,2]
[323463817,1714017042036,-523.42039231,0.00011994,2]
[323463818,1714017042045,-582.85,0.00011994,2]
[323463819,1714017042056,-503.85912377,0.00011994,2]
[323463820,1714017042065,-505.40397239,0.00011994,2]
[323463821,1714017042074,-502.04123358,0.00011994,2]
[323463822,1714017042083,-500.0,0.00011994,2]
[323463823,1714017042094,-500.0,0.00011994,2]
[323463824,1714017042103,-507.90201485,0.00011994,2]
[323463825,1714017042112,-508.54718198,0.00011994,2]
[323463826,1714017042122,-500.0,0.00011994,2]
[323463827,1714017042131,-500.0,0.00011994,2]
[323463828,1714017042140,-504.63192731,0.00011994,2]
[323463829,1714017042150,-506.96721089,0.00011994,2]
[323463830,1714017042159,-191.95,0.00011994,2]
[323463831,1714017042168,-534.64654271,0.00011994,2]
[323463832,1714017042177,-739.8,0.00011994,2]
[323463833,1714017042187,-501.57247232,0.00011994,2]
[323463834,1714017042196,-521.07217621,0.00011994,2]
[323463835,1714017042206,-501.86355313,0.00011994,2]
[323463836,1714017042220,-502.09490072,0.00011994,2]
[323463837,1714017042230,-502.57752162,0.00011995,2]
[323463838,1714017042240,-500.13154501,0.00011995,2]
[323463839,1714017042249,-503.39061469,0.00011995,2]
[323463840,1714017042260,-500.89232268,0.00011995,2]
[323463841,1714017042271,-503.07340941,0.00011995,2]
[323463842,1714017042281,-507.20642383,0.00011995,2]
[323463843,1714017042292,-503.64138465,0.00011995,2]
[323463844,1714017042305,-500.0,0.00011995,2]
[323463845,1714017042314,-520.41352483,0.00011995,2]
[323463846,1714017042324,-517.507862,0.00011995,2]
[323463847,1714017042333,-505.54482287,0.00011995,2]
[323463848,1714017042343,-500.0,0.00011995,2]
[323463849,1714017042353,-508.20967465,0.00011995,2]
[323463850,1714017042362,-505.30062378,0.00011995,2]
[323463851,1714017042372,-517.06759439,0.00011995,2]
[323463852,1714017042382,-500.0,0.00011995,2]
[323463853,1714017042391,-515.79062562,0.00011995,2]
[323463854,1714017042400,-501.17538244,0.00011995,2]
[323463855,1714017042409,-503.44482686,0.00011995,2]
[323463856,1714017042419,-504.87890682,0.00011995,2]
[323463857,1714017042428,-510.28290605,0.00011995,2]
[323463858,1714017042437,-502.21791587,0.00011995,2]
[323463859,1714017042446,-501.94592332,0.00011995,2]
[323463860,1714017042455,-510.99620947,0.00011995,2]
[323463861,1714017042464,-515.83631578,0.00011995,2]
[323463862,1714017042473,-509.98993522,0.00011995,2]
[323463863,1714017042483,-502.87276078,0.00011995,2]
[323463864,1714017042492,-501.02568115,0.00011995,2]
[323463865,1714017042502,-599.37396362,0.00011995,2]
[323463866,1714017042510,-512.71900522,0.00011995,2]
[323463867,1714017042519,-504.72143498,0.00011995,2]
[323463868,1714017042529,-501.77544689,0.00011995,2]
[323463869,1714017042538,-607.00584087,0.00011995,2]
[323463870,1714017042547,-506.23784754,0.00011995,2]
[323463871,1714017042560,-563.31146396,0.00011995,2]
[323463872,1714017042569,-502.6943443,0.00011995,2]
[323463873,1714017042580,-503.00927455,0.00011995,2]
[323463874,1714017042590,-507.52475181,0.00011995,2]
[323463875,1714017042598,-501.36147827,0.00011995,2]
[323463876,1714017042607,-503.70019339,0.00011995,2]
[323463877,1714017042616,-504.47302619,0.00011995,2]
[323463878,1714017042625,-503.18347983,0.00011995,2]
[323463879,1714017042634,-503.15533473,0.00011995,2]
[323463880,1714017042642,-503.88921737,0.00011995,2]
[323463881,1714017042651,-507.52325149,0.00011995,2]
[323463882,1714017042660,-503.98411442,0.00011995,2]
[323463883,1714017042670,-228.54258863,0.00011995,2]
[323463884,1714017042679,-505.85148775,0.00011995,2]
[323463885,1714017042689,-506.68046936,0.00011995,2]
[323463886,1714017042698,-503.48712445,0.00011995,2]
[323463887,1714017042708,-504.74315736,0.00011995,2]
[323463888,1714017042717,-502.94577298,0.00011995,2]
[323463889,1714017042726,-502.29693854,0.00011995,2]
[323463890,1714017042735,-508.9075868,0.00011995,2]
[323463891,1714017042744,-503.37491114,0.00011995,2]
[323463892,1714017042753,-537.44563218,0.00011995,2]
[323463893,1714017042762,-547.18168933,0.00011995,2]
[323463894,1714017042771,-509.60622737,0.00011995,2]
[323463895,1714017042780,-500.0,0.00011995,2]
[323463896,1714017042790,-500.0,0.00011995,2]
[323463897,1714017042799,-512.63213617,0.00011995,2]
[323463898,1714017042812,-500.42088462,0.00011995,2]
[323463899,1714017042821,-557.55418694,0.00011995,2]
[323463900,1714017042831,-502.75490049,0.00011995,2]
[323463901,1714017042840,-506.82855423,0.00011995,2]
[323463902,1714017042849,-504.55747731,0.00011995,2]
[323463903,1714017042859,-572.24894236,0.00011995,2]
[323463904,1714017042868,-504.13272508,0.00011995,2]
[323463905,1714017042877,-642.14486758,0.00011995,2]
[323463906,1714017042886,-506.162943,0.00011995,2]
[323463907,1714017042895,-507.47525189,0.00011995,2]
[323463908,1714017042905,-514.57172104,0.00011995,2]
[323463909,1714017042914,-502.90218945,0.00011995,2]
[323463910,1714017042923,-526.23664607,0.00011995,2]
[323463911,1714017042932,-506.11974215,0.00011995,2]
[323463912,1714017042941,-501.03075718,0.00011995,2]
[323463913,1714017042951,-508.52039433,0.00011995,2]
[323463914,1714017042959,-504.47802834,0.00011995,2]
[323463915,1714017042969,-515.41423739,0.00011995,2]
[323463916,1714017042978,-506.97816744,0.00011995,2]
[323463917,1714017042987,-504.03512255,0.00011995,2]
[323463918,1714017042996,-569.90398486,0.00011995,2]
[323463919,1714017043006,-526.99003128,0.00011995,2]
[323463920,1714017043015,-526.89088982,0.00011995,2]
[323463921,1714017043024,-502.35881395,0.00011995,2]
[323463922,1714017043034,-508.50915797,0.00011995,2]
[323463923,1714017043043,-504.2297811,0.00011995,2]
[323463924,1714017043052,-503.60689739,0.00011995,2]
[323463925,1714017043063,-501.88717987,0.00011995,2]
[323463926,1714017043073,-503.89645351,0.00011995,2]
[323463927,1714017043082,-502.73981679,0.00011995,2]
[323463928,1714017043091,-514.10881859,0.00011995,2]
[323463929,1714017043100,-504.06079042,0.00011995,2]
[323463930,1714017043110,-505.81697752,0.00011995,2]
[323463931,1714017043119,-501.83302114,0.00011995,2]
[323463933,1714017043129,-506.98346408,0.00011995,2]
[323463934,1714017043139,-513.60301438,0.00011995,2]
[323463935,1714017043148,-505.98521273,0.00011995,2]
[323463936,1714017043157,-528.91131346,0.00011995,2]
[323463937,1714017043166,-537.41399289,0.00011995,2]
[323463938,1714017043176,-503.11387078,0.00011995,2]
[323463939,1714017043186,-605.68834789,0.00011995,2]
[323463940,1714017043195,-500.0,0.00011995,2]
[323463941,1714017043205,-500.0,0.00011995,2]
[323463942,1714017043218,-507.8358292,0.00011995,2]
[323463943,1714017043227,-506.52326552,0.00011995,2]
[323463944,1714017043235,-627.22167489,0.00011995,2]
[323463945,1714017043244,-642.12407615,0.00011995,2]
[323463947,1714017043255,-504.95657274,0.00011995,2]
[323463948,1714017043264,-501.56528222,0.00011995,2]
[323463949,1714017043274,-504.41935493,0.00011995,2]
[323463951,1714017043284,-502.07483831,0.00011995,2]
[323463953,1714017043293,-502.39105859,0.00011995,2]
[323463955,1714017043306,-502.95582971,0.00011995,2]
[323463956,1714017043315,-500.84679655,0.00011995,2]
[323463958,1714017043325,-505.8967239,0.00011995,2]
[323463959,1714017043334,-504.17877825,0.00011995,2]
[323463960,1714017043344,-500.0,0.00011995,2]
[323463962,1714017043353,-504.93214536,0.00011995,2]
[323463963,1714017043363,-507.69418679,0.00011995,2]
[323463965,1714017043372,-506.12571247,0.00011995,2]
[323463967,1714017043381,-536.4455456,0.00011995,2]
[323463968,1714017043390,-500.43395398,0.00011995,2]
[323463969,1714017043399,-512.55077726,0.00011995,2]
[323463970,1714017043408,-596.71793252,0.00011995,2]
[323463971,1714017043417,-506.33145299,0.00011995,2]
[323463972,1714017043427,-623.23615743,0.00011995,2]
[323463973,1714017043436,-500.0,0.00011995,2]
[323463974,1714017043445,-504.9623471,0.00011995,2]
[323463975,1714017043454,-506.42300325,0.00011995,2]
[323463976,1714017043463,-503.79606913,0.00011995,2]
[323463977,1714017043472,-500.0,0.00011995,2]
[323463978,1714017043481,-524.43080961,0.00011995,2]
[323463979,1714017043491,-500.0,0.00011995,2]
[323463980,1714017043500,-523.05152726,0.00011995,2]
[323463981,1714017043509,-510.8243421,0.00011995,2]
[323463982,1714017043519,-511.31105681,0.00011995,2]
[323463983,1714017043528,-505.36992481,0.00011995,2]
[323463984,1714017043537,-504.8550781,0.00011995,2]
[323463985,1714017043547,-545.34858736,0.00011995,2]
[323463986,1714017043557,-500.0,0.00011995,2]
[323463987,1714017043566,-506.18483189,0.00011995,2]
[323463988,1714017043575,-511.09976357,0.00011995,2]
[323463989,1714017043585,-503.96989544,0.00011995,2]
[323463990,1714017043594,-572.04877474,0.00011995,2]
[323463991,1714017043603,-504.07835584,0.00011995,2]
[323463992,1714017043613,-503.71520043,0.00011995,2]
[323463993,1714017043622,-512.7473893,0.00011995,2]
[323463994,1714017043633,-500.0,0.00011995,2]
[323463995,1714017043643,-405.28079689,0.00011995,2]
[323463996,1714017043653,-500.0,0.00011995,2]
[323463997,1714017043663,-502.61799154,0.00011995,2]
[323463998,1714017043672,-503.89440167,0.00011995,2]
[323463999,1714017043681,-500.0,0.00011995,2]
[323464000,1714017043691,-505.82842313,0.00011995,2]
[323464001,1714017043700,-510.16449817,0.00011995,2]
[323464002,1714017043709,-500.0,0.00011995,2]
[323464003,1714017043718,-535.61380754,0.00011995,2]
[323464004,1714017043727,-500.0,0.00011995,2]
[323464005,1714017043736,-503.87101059,0.00011995,2]
[323464006,1714017043745,-511.55690545,0.00011995,2]
[323464007,1714017043754,-326.6347262,0.00011995,2]
[323464008,1714017043764,-507.15352991,0.00011995,2]
[323464009,1714017043775,-500.0,0.00011995,2]
[323464010,1714017043784,-503.5306318,0.00011995,2]
[323464011,1714017043793,-509.95064721,0.00011995,2]
[323464012,1714017043802,-511.9412561,0.00011995,2]
[323464013,1714017043813,-509.03353802,0.00011995,2]
[323464014,1714017043822,-500.0,0.00011995,2]
[323464015,1714017043832,-500.0,0.00011995,2]
[323464016,1714017043842,-500.0,0.00011995,2]
[323464017,1714017043851,-559.3,0.00011995,2]
[323464018,1714017043861,-302.66583645,0.00011995,2]
[323464019,1714017043870,-500.0,0.00011995,2]
[323464020,1714017043881,-503.33170702,0.00011995,2]
[323464021,1714017043890,-501.63305707,0.00011995,2]
[323464022,1714017043901,-508.71459612,0.00011995,2]
[323464023,1714017043911,-510.27981052,0.00011995,2]
[323464024,1714017043921,-510.88888819,0.00011995,2]
[323464025,1714017043932,-500.0,0.00011995,2]
[323464026,1714017043941,-518.94,0.00011995,2]
[323464027,1714017043950,-535.96974459,0.00011995,2]
[323464028,1714017043960,-571.12,0.00011995,2]
[323464029,1714017043969,-515.38049713,0.00011995,2]
[323464030,1714017043978,-500.0,0.00011995,2]
[323464031,1714017043987,-515.67386089,0.00011995,2]
[323464032,1714017043997,-502.24938972,0.00011995,2]
[323464033,1714017044007,-514.4611749,0.00011995,2]
[323464034,1714017044016,-512.62558558,0.00011995,2]
[323464035,1714017044025,-505.65182117,0.00011995,2]
[323464036,1714017044036,-508.20564182,0.00011995,2]
[323464037,1714017044047,-500.0,0.00011995,2]
[323464038,1714017044059,-500.0,0.00011995,2]
[323464039,1714017044069,-213.24709788,0.00011995,2]
[323464040,1714017044079,-500.83491449,0.00011995,2]
[323464041,1714017044088,-500.0,0.00011995,2]
[323464042,1714017044098,-514.26290822,0.00011995,2]
[323464043,1714017044107,-514.80698232,0.00011995,2]
[323464044,1714017044116,-514.60922849,0.00011995,2]
[323464045,1714017044126,-511.08077907,0.00011995,2]
[323464046,1714017044135,-543.37330671,0.00011995,2]
[323464047,1714017044144,-450.0,0.00011995,2]
[323464048,1714017044153,-506.19913103,0.00011995,2]
[323464049,1714017044162,-514.90399249,0.00011995,2]
[323464050,1714017044171,-514.39328028,0.00011995,2]
[323464051,1714017044181,-514.54333946,0.00011995,2]
[323464052,1714017044190,-503.79300391,0.00011995,2]
[323464053,1714017044200,-500.0,0.00011995,2]
[323464054,1714017044210,-507.98830911,0.00011995,2]
[323464055,1714017044224,-500.0,0.00011995,2]
[323464056,1714017044234,-500.0,0.00011995,2]
[323464057,1714017044243,-526.74133551,0.00011995,2]
[323464058,1714017044253,-627.95595365,0.00011995,2]
[323464059,1714017044263,-525.55446898,0.00011995,2]
[323464060,1714017044272,-504.87291167,0.00011995,2]
[323464061,1714017044282,-505.96982508,0.00011995,2]
[323464062,1714017044293,-500.0,0.00011995,2]
[323464063,1714017044304,-511.59963815,0.00011995,2]
[323464064,1714017044314,-510.35416051,0.00011995,2]
[323464065,1714017044323,-526.08,0.00011995,2]
[323464066,1714017044332,-523.98430245,0.00011995,2]
[323464067,1714017044342,-509.08721425,0.00011995,2]
[323464068,1714017044352,-524.14553101,0.00011995,2]
[323464069,1714017044361,-519.43,0.00011995,2]
[323464070,1714017044371,-458.82432016,0.00011995,2]
[323464071,1714017044380,-509.47279824,0.00011995,2]
[323464072,1714017044389,-500.0,0.00011995,2]
[323464073,1714017044398,-533.1503504,0.00011995,2]
[323464074,1714017044407,-500.0,0.00011995,2]
[323464075,1714017044416,-509.89724549,0.00011995,2]
[323464076,1714017044426,-500.0,0.00011995,2]
[323464077,1714017044436,-504.73416515,0.00011995,2]
[323464078,1714017044446,-500.0,0.00011995,2]
[323464079,1714017044455,-519.66564459,0.00011995,2]
[323464080,1714017044465,-500.0,0.00011995,2]
[323464081,1714017044474,-529.35011829,0.00011995,2]
[323464082,1714017044483,-500.0,0.00011995,2]
[323464083,1714017044493,-527.92339386,0.00011995,2]
[323464084,1714017044502,-515.43973456,0.00011995,2]
[323464085,1714017044511,-500.0,0.00011995,2]
[323464086,1714017044520,-500.0,0.00011995,2]
[323464087,1714017044530,-500.0,0.00011995,2]
[323464088,1714017044539,-500.0,0.00011995,2]
[323464089,1714017044548,-500.0,0.00011995,2]
[323464090,1714017044558,-441.36525942,0.00011995,2]
[323464091,1714017044567,-516.43547263,0.00011995,2]
[323464092,1714017044576,-500.0,0.00011995,2]
[323464093,1714017044585,-528.62936784,0.00011995,2]
[323464094,1714017044594,-522.45,0.00011995,2]
[323464095,1714017044603,-500.0,0.00011995,2]
[323464096,1714017044613,-500.0,0.00011995,2]
[323464097,1714017044622,-500.0,0.00011995,2]
[323464098,1714017044631,-500.0,0.00011995,2]
[323464099,1714017044640,-500.0,0.00011995,2]
[323464100,1714017044649,-500.0,0.00011995,2]
[323464101,1714017044658,-500.0,0.00011995,2]
[323464102,1714017044668,-2116.93,0.00011995,2]
[323464103,1714017044677,-500.0,0.00011995,2]
[323464104,1714017044686,-500.0,0.00011995,2]
[323464105,1714017044695,-500.0,0.00011995,2]
[323464106,1714017044704,-606.43625302,0.00011995,2]
[323464107,1714017044714,-500.0,0.00011995,2]
[323464108,1714017044723,-453.78827583,0.00011995,2]
[323464109,1714017044733,-500.0,0.00011995,2]
[323464110,1714017044742,-256.79674205,0.00011995,2]
[323464111,1714017044751,-500.0,0.00011995,2]
[323464112,1714017044760,-508.16000195,0.00011995,2]
[323464113,1714017044951,-519.90276712,0.00011995,2]
[323464114,1714017044960,-500.0,0.00011995,2]
[323464115,1714017044970,-504.97653037,0.00011995,2]
[323464116,1714017044979,-500.0,0.00011995,2]
[323464117,1714017044989,-503.90219557,0.00011995,2]
[323464118,1714017044998,-503.85903551,0.00011995,2]
[323464119,1714017045008,-500.0,0.00011995,2]
[323464120,1714017045018,-500.0,0.00011995,2]
[323464121,1714017045027,-500.0,0.00011995,2]
[323464122,1714017045037,-500.0,0.00011995,2]
[323464123,1714017045047,-500.0,0.00011995,2]
[323464124,1714017045056,-500.0,0.00011995,2]
[323464125,1714017045065,-500.0,0.00011995,2]
[323464126,1714017045074,-500.0,0.00011995,2]
[323464127,1714017045083,-179.98267986,0.00011995,2]
[323464128,1714017045093,-500.0,0.00011995,2]
[323464129,1714017045103,-346.95221195,0.00011995,2]
[323464130,1714017045113,-500.0,0.00011995,2]
[323464131,1714017045122,-500.0,0.00011995,2]
[323464132,1714017045132,-500.0,0.00011995,2]
[323464133,1714017045141,-595.06837792,0.00011995,2]
[323464134,1714017045151,-559.14821428,0.00011995,2]
[323464135,1714017045161,-500.0,0.00011995,2]
[323464136,1714017045170,-505.37569782,0.00011995,2]
[323464137,1714017045180,-500.0,0.00011995,2]
[323464138,1714017045190,-501.3430322,0.00011995,2]
[323464139,1714017045199,-500.0,0.00011995,2]
[323464140,1714017045210,-503.68047008,0.00011995,2]
[323464141,1714017045224,-492.44953675,0.00011995,2]
[323464142,1714017045233,-500.0,0.00011995,2]
[323464143,1714017045243,-500.0,0.00011995,2]
[323464144,1714017045254,-504.89761711,0.00011995,2]
[323464145,1714017045263,-504.55310863,0.00011995,2]
[323464146,1714017045273,-500.61,0.00011995,2]
[323464147,1714017045283,-500.0,0.00011995,2]
[323464148,1714017045293,-509.62514224,0.00011995,2]
[323464149,1714017045302,-504.3092493,0.00011995,2]
[323464150,1714017045313,-510.31220752,0.00011995,2]
[323464151,1714017045323,-500.39603041,0.00011995,2]
[323464152,1714017045332,-501.93502442,0.00011995,2]
[323464153,1714017045341,-506.52743006,0.00011995,2]
[323464154,1714017045351,-500.0,0.00011995,2]
[323464155,1714017045360,-506.65961214,0.00011995,2]
[323464156,1714017045370,-500.0,0.00011995,2]
[323464157,1714017045379,-501.36285878,0.00011995,2]
[323464158,1714017045389,-327.93188612,0.00011995,2]
[323464159,1714017045399,-531.49,0.00011995,2]
[323464160,1714017045408,-500.0,0.00011995,2]
[323464161,1714017045417,-500.0,0.00011995,2]
[323464162,1714017045427,-500.0,0.00011995,2]
[323464163,1714017045437,-500.0,0.00011995,2]
[323464164,1714017045447,-500.0,0.00011995,2]
[323464165,1714017045456,-535.82,0.00011995,2]
[323464166,1714017045466,-500.0,0.00011995,2]
[323464167,1714017045475,-507.17505217,0.00011995,2]
[323464168,1714017045484,-594.25344096,0.00011995,2]
[323464169,1714017045494,-500.0,0.00011995,2]
[323464170,1714017045504,-169.51747407,0.00011995,2]
[323464171,1714017045513,-578.95773089,0.00011995,2]
[323464172,1714017045522,-500.0,0.00011995,2]
[323464173,1714017045532,-504.75232144,0.00011995,2]
[323464174,1714017045541,-500.0,0.00011995,2]
[323464175,1714017045551,-500.0,0.00011995,2]
[323464176,1714017045562,-529.91,0.00011995,2]
[323464177,1714017045571,-500.0,0.00011995,2]
[323464178,1714017045580,-500.0,0.00011995,2]
[323464179,1714017045590,-526.07849957,0.00011995,2]
[323464180,1714017045600,-500.0,0.00011995,2]
[323464181,1714017045609,-503.28965018,0.00011995,2]
[323464182,1714017045619,-500.0,0.00011995,2]
[323464183,1714017045628,-500.0,0.00011995,2]
[323464184,1714017045637,-501.59948214,0.00011995,2]
[323464185,1714017045646,-500.0,0.00011995,2]
[323464186,1714017045655,-500.0,0.00011995,2]
[323464187,1714017045665,-512.35079942,0.00011995,2]
[323464188,1714017045674,-500.0,0.00011995,2]
[323464189,1714017045684,-500.0,0.00011995,2]
[323464190,1714017045693,-500.0,0.00011995,2]
[323464191,1714017045703,-500.0,0.00011995,2]
[323464192,1714017045712,-501.22542502,0.00011995,2]
[323464193,1714017045722,-271.71076977,0.00011995,2]
[323464194,1714017045731,-500.0,0.00011995,2]
[323464195,1714017045741,-519.56834139,0.00011995,2]
[323464196,1714017045750,-513.22336445,0.00011995,2]
[323464197,1714017045760,-550.49668271,0.00011995,2]
[323464198,1714017045769,-500.0,0.00011995,2]
[323464199,1714017045778,-500.0,0.00011995,2]
[323464200,1714017045787,-595.64102316,0.00011995,2]
[323464201,1714017045797,-500.0,0.00011995,2]
[323464202,1714017045808,-500.0,0.00011995,2]
[323464203,1714017045818,-500.0,0.00011995,2]
[323464204,1714017045828,-500.0,0.00011995,2]
[323464205,1714017045838,-500.0,0.00011995,2]
[323464206,1714017045847,-173.950154,0.00011995,2]
[323464207,1714017045856,-173.950154,0.00011995,2]
[323464208,1714017045866,-500.0,0.00011995,2]
[323464209,1714017045878,-173.950154,0.00011995,2]
[323464210,1714017045888,-545.91748064,0.00011995,2]
[323464211,1714017045898,-173.950154,0.00011995,2]
[323464212,1714017045908,-173.950154,0.00011995,2]
[323464213,1714017045918,-173.950154,0.00011995,2]
[323464214,1714017045927,-509.91926643,0.00011995,2]
[323464215,1714017045937,-500.0,0.00011995,2]
[323464216,1714017045946,-500.68803063,0.00011995,2]
[323464217,1714017045956,-500.0,0.00011995,2]
[323464218,1714017045965,-500.0,0.00011995,2]
[323464219,1714017045975,-503.86460205,0.00011995,2]
[323464220,1714017045985,-500.0,0.00011995,2]
[323464221,1714017045995,-579.8209799,0.00011995,2]
[323464222,1714017046005,-500.0,0.00011995,2]
[323464223,1714017046015,-500.0,0.00011995,2]
[323464224,1714017046025,-500.0,0.00011995,2]
[323464225,1714017046034,-514.54590379,0.00011995,2]
[323464227,1714017046043,-510.96581515,0.00011995,2]
[323464229,1714017046053,-500.0,0.00011995,2]
[323464230,1714017046066,-521.38135948,0.00011995,2]
[323464231,1714017046075,-500.0,0.00011995,2]
[323464232,1714017046085,-500.0,0.00011995,2]
[323464233,1714017046095,-500.0,0.00011995,2]
[323464235,1714017046104,-500.0,0.00011995,2]
[323464236,1714017046114,-468.99,0.00011995,2]
[323464237,1714017046123,-858.55,0.00011995,2]
[323464238,1714017046133,-500.0,0.00011995,2]
[323464239,1714017046142,-508.23349961,0.00011995,2]
[323464240,1714017046151,-500.0,0.00011995,2]
[323464241,1714017046161,-647.67861397,0.00011995,2]
[323464242,1714017046171,-500.0,0.00011995,2]
[323464243,1714017046180,-527.50204493,0.00011995,2]
[323464244,1714017046189,-520.71,0.00011995,2]
[323464245,1714017046199,-516.71738243,0.00011995,2]
[323464246,1714017046208,-500.0,0.00011995,2]